bitfinex/quotes_ETHUSD_20241225
["timestamp","ask_amount","ask_price","bid_price","bid_amount"]
[1735153776392,0.576014,3472.0,3471.5,0.7864]
[1735153776893,2.88043,3471.7,3471.0,0.7644]
[1735153777197,2.88074,3471.4,3471.0,0.7644]
[1735153777394,0.7792,3471.5,3470.8,1.20797394]
[1735153777596,0.34997998,3471.4,3470.8,1.20797394]
[1735153778093,0.34997998,3471.4,3470.6,1.20797394]
[1735153778289,2.88085,3471.2,3470.6,1.20797394]
[1735153779417,0.34997998,3471.4,3470.6,1.20797394]
[1735153779621,2.88076,3471.3,3470.5,0.7644]
[1735153779775,3.66013,3471.1,3470.2,0.7644]
[1735153779980,2.88148,3470.5,3470.2,0.7644]
[1735153780189,2.88148,3470.5,3470.1,1.20797394]
[1735153780391,2.88159,3470.3,3470.1,1.20797394]
[1735153781026,2.88159,3470.3,3469.8,2.40862925]
[1735153781027,2.88159,3470.3,3469.9,1.20797394]
[1735153781222,0.7792,3470.5,3469.9,1.20797394]
[1735153781410,2.88178,3470.1,3469.9,1.20797394]
[1735153782731,2.88184,3470.0,3469.9,1.20797394]
[1735153782941,2.88201,3469.8,3469.4,0.8319]
[1735153783647,2.88184,3470.0,3469.4,0.8319]
[1735153783783,0.7792,3470.5,3469.4,0.8319]
[1735153784840,2.88172,3470.2,3469.4,0.8319]
[1735153784985,2.72059977,3470.3,3469.4,0.8319]
[1735153785338,2.72059977,3470.0,3468.6,0.8319]
[1735153785540,2.88192,3469.9,3468.6,0.8319]
[1735153785697,2.88214,3469.7,3468.6,0.8319]
[1735153787613,2.88214,3469.7,3468.8,0.8319]
[1735153791308,2.8822,3469.6,3468.8,0.8319]
[1735153796875,2.88226,3469.5,3468.8,0.8319]
[1735153799976,2.88235,3469.4,3468.8,0.8319]
[1735153801550,2.88241,3469.4,3468.8,0.8319]
[1735153809115,2.88201,3469.8,3468.8,0.8319]
[1735153809456,2.88224,3469.6,3468.8,0.8319]
[1735153809631,0.58457018,3470.0,3468.8,0.8319]
[1735153809833,2.88138,3470.6,3469.6,0.55]
[1735153810000,2.19692001,3471.3,3469.8,0.55]
[1735153810001,3.99665153,3471.1,3469.8,0.55]
[1735153810210,2.88128,3470.7,3470.0,0.8045]
[1735153811099,2.88135,3470.6,3470.0,0.8045]
[1735153811298,2.88146,3470.5,3470.0,0.8045]
[1735153811795,2.88163,3470.3,3470.0,0.8045]
[1735153811999,0.288146,3470.5,3469.7,0.8064]
[1735153812000,0.7641,3470.4,3469.7,0.8064]
[1735153812223,2.88159,3470.3,3469.7,0.8064]
[1735153812399,2.88167,3470.2,3469.1,0.55]
[1735153812608,2.882,3469.9,3469.1,0.55]
[1735153812820,2.882,3469.9,3469.1,0.74222646]
[1735153813023,2.88159,3470.3,3469.1,0.74222646]
[1735153813242,2.88202,3469.8,3469.1,0.74222646]
[1735153816247,0.7641,3469.9,3469.0,0.8064]
[1735153816452,2.88258,3469.2,3469.0,0.8064]
[1735153816641,2.88259,3469.1,3469.0,0.8064]
[1735153816978,2.88259,3469.1,3467.9,1.2007034]
[1735153816979,2.88259,3469.1,3468.0,0.8064]
[1735153817126,2.88259,3469.1,3468.2,0.8064]
[1735153818041,2.88259,3469.1,3468.3,0.8064]
[1735153820854,0.7641,3469.8,3468.3,0.8064]
[1735153821157,2.8826,3469.1,3468.3,0.8064]
[1735153821358,2.8826,3469.1,3468.4,0.45497701]
[1735153822447,2.88269,3469.0,3468.4,0.45497701]
[1735153822666,2.88269,3469.0,3468.3,0.8064]
[1735153824391,2.88276,3468.9,3468.3,0.8064]
[1735153824592,3.64668,3469.2,3468.3,0.8064]
[1735153824758,2.88266,3469.1,3468.3,0.8064]
[1735153824951,2.8827,3469.0,3468.3,0.8064]
[1735153825157,2.8827,3469.0,3468.3,3.65268631]
[1735153826792,2.8827,3469.0,3468.3,0.8064]
[1735153832396,4.07969534,3469.4,3468.3,0.8064]
[1735153832597,1.19729534,3469.4,3468.3,0.8064]
[1735153832901,2.88294,3468.7,3468.3,0.8064]
[1735153834611,0.7612,3469.2,3468.3,0.8064]
[1735153834766,1.19729534,3469.3,3468.3,0.8064]
[1735153834959,1.19729534,3469.3,3468.3,1.15909998]
[1735153835261,2.88295,3468.7,3468.3,0.8064]
[1735153838930,3.64379,3469.1,3468.3,0.8064]
[1735153838931,2.88304,3468.6,3468.3,0.8064]
[1735153841254,2.88267,3469.0,3468.3,0.8064]
[1735153841545,2.88289,3468.8,3468.3,0.8064]
[1735153841754,0.7612,3469.1,3468.3,0.8064]
[1735153842061,2.8829,3468.8,3468.3,0.8064]
[1735153845258,2.88293,3468.7,3468.3,0.8064]
[1735153846274,1.19729534,3469.3,3468.3,0.8064]
[1735153846424,2.88251,3469.2,3468.3,0.8064]
[1735153847008,2.88251,3469.2,3468.4,0.7661]
[1735153847418,2.88261,3469.1,3468.4,0.7661]
[1735153847673,2.88284,3468.8,3468.4,0.7661]
[1735153847855,2.88293,3468.7,3468.4,0.7661]
[1735153849924,1.19729534,3469.3,3468.4,0.7661]
[1735153850221,2.88254,3469.2,3468.4,0.7661]
[1735153851236,3.54707783,3469.2,3468.4,0.7661]
[1735153851998,2.88259,3469.1,3468.4,0.7661]
[1735153853240,2.88249,3469.3,3468.4,0.7661]
[1735153854257,2.88251,3469.2,3468.4,0.7661]
[1735153859028,1.19729534,3469.4,3468.4,0.7661]
[1735153859326,2.88255,3469.2,3468.4,0.7661]
[1735153860441,2.88259,3469.1,3468.4,0.7661]
[1735153861377,2.88259,3469.1,3468.5,2.50104347]
[1735153861574,1.19729534,3469.3,3468.9,2.72059977]
[1735153861825,1.19729534,3469.3,3469.1,0.7681]
[1735153862033,1.19729534,3469.3,3468.9,2.72059977]
[1735153862034,1.19729534,3469.3,3469.2,1.11696998]
[1735153863295,2.8817,3470.2,3469.3,0.7681]
[1735153863296,1.19729534,3469.9,3469.3,0.7681]
[1735153864390,5.27629068,3470.2,3469.3,0.7681]
[1735153864391,4.07899534,3470.2,3469.3,0.7681]
[1735153864913,1.19729534,3470.2,3469.7,0.7681]
[1735153865491,1.19729534,3470.3,3469.8,2.74941678]
[1735153865694,1.19729534,3470.3,3470.0,0.7681]
[1735153866851,2.88159,3470.3,3470.0,0.7681]
[1735153868435,1.19729534,3470.7,3470.0,0.7681]
[1735153868436,2.88142,3470.5,3470.0,0.7681]
[1735153870326,2.88126,3470.7,3470.0,0.7681]
[1735153870530,2.88109,3470.9,3470.2,0.7681]
[1735153870828,2.00979534,3471.1,3470.2,0.7681]
[1735153871933,2.88136,3470.6,3470.2,0.7681]
[1735153874732,3.6935,3471.1,3470.2,0.7681]
[1735153874932,2.8812,3470.8,3470.2,0.7681]
[1735153877819,2.88159,3470.3,3470.2,0.7681]
[1735153878005,2.88159,3470.3,3469.4,0.8251]
[1735153878206,2.88159,3470.3,3469.5,0.02881821]
[1735153878421,2.88159,3470.3,3469.4,0.8251]
[1735153879167,2.88159,3470.3,3469.4,3.0]
[1735153879450,2.88159,3470.3,3469.6,0.8251]
[1735153881699,2.88159,3470.3,3469.6,35.8251]
[1735153881987,0.7607,3470.5,3469.6,0.8251]
[1735153882132,0.7607,3470.0,3469.0,0.8251]
[1735153882649,0.7607,3469.9,3468.9,1.2007034]
[1735153882846,2.88256,3469.2,3468.9,1.2007034]
[1735153883950,2.88256,3469.2,3468.7,0.8251]
[1735153884985,0.7607,3469.8,3468.7,0.8251]
[1735153885282,2.88222,3469.6,3468.7,0.8251]
[1735153885702,2.88222,3469.6,3468.7,36.20761]
[1735153886889,2.88226,3469.5,3468.7,36.20761]
[1735153887492,2.88234,3469.4,3468.7,36.20761]
[1735153887638,2.88234,3469.4,3468.7,1.20761]
[1735153887838,2.88234,3469.4,3468.7,0.8251]
[1735153890485,2.88218,3469.6,3468.7,0.8251]
[1735153891691,2.8823,3469.5,3468.7,0.8251]
[1735153894300,2.88234,3469.4,3468.7,0.8251]
[1735153899199,0.7599,3469.6,3468.7,0.8251]
[1735153899495,2.88224,3469.6,3468.7,0.8251]
[1735153899856,2.88226,3469.5,3468.7,0.8251]
[1735153900086,2.88234,3469.4,3468.7,0.8251]
[1735153905524,2.88234,3469.4,3468.7,0.85392609]
[1735153905997,2.88234,3469.4,3468.7,0.8251]
[1735153909011,2.88234,3469.4,3468.7,0.85392609]
[1735153909225,2.88234,3469.4,3468.7,0.8251]
[1735153909614,2.88234,3469.4,3468.7,0.8539261]
[1735153910128,2.88219,3469.6,3468.7,0.8539261]
[1735153910631,2.88219,3469.6,3468.7,0.8251]
[1735153914197,2.88219,3469.6,3468.7,1.03056295]
[1735153914611,2.88219,3469.6,3468.8,0.8286]
[1735153916221,2.88224,3469.6,3468.8,0.8286]
[1735153920184,2.8823,3469.5,3468.8,0.8286]
[1735153921558,4.07924534,3469.9,3468.8,0.8286]
[1735153921729,4.07924534,3469.9,3469.0,0.7611]
[1735153921931,1.19729534,3469.9,3469.2,1.19783606]
[1735153922185,1.19729534,3469.9,3469.3,0.7611]
[1735153923714,2.88177,3470.1,3469.4,0.99926506]
[1735153924086,1.19783606,3469.9,3469.4,0.99926506]
[1735153924383,2.88225,3469.5,3469.4,0.99926506]
[1735153924769,2.88225,3469.5,3469.3,1.49889759]
[1735153926080,2.88225,3469.5,3469.0,0.7611]
[1735153928357,4.07954534,3469.5,3469.0,0.7611]
[1735153930304,1.19729534,3469.5,3469.0,0.7611]
[1735153930462,1.19729534,3469.6,3469.1,1.00108405]
[1735153931008,1.19729534,3469.6,3469.2,0.7611]
[1735153931804,1.19729534,3469.7,3469.2,1.76218405]
[1735153932894,2.88201,3469.8,3469.3,2.50243796]
[1735153933074,2.88224,3469.6,3469.3,2.50243796]
[1735153933855,4.07953534,3469.6,3469.0,0.8103]
[1735153934663,4.07953534,3469.6,3469.1,1.00096377]
[1735153935063,2.88227,3469.5,3469.1,1.00096377]
[1735153935689,2.88227,3469.5,3469.0,0.8103]
[1735153937005,1.19729534,3469.6,3469.0,0.8103]
[1735153937006,2.88235,3469.4,3469.0,0.8103]
[1735153937903,1.19729534,3469.6,3469.0,0.5814227]
[1735153938110,1.19729534,3469.6,3469.2,0.8103]
[1735153939682,4.07898534,3470.2,3469.5,0.8103]
[1735153941172,4.07898534,3470.2,3469.6,1.00069735]
[1735153941670,1.19729534,3470.2,3469.7,0.8103]
[1735153941871,1.19729534,3470.2,3469.9,0.8103]
[1735153942134,1.19729534,3470.3,3469.9,0.8103]
[1735153943674,2.88177,3470.1,3469.9,0.8103]
[1735153943874,2.88167,3470.2,3469.4,0.8103]
[1735153944233,2.88218,3469.6,3469.5,2.4014068]
[1735153944976,2.88218,3469.6,3469.2,0.8103]
[1735153945219,0.7915,3469.8,3468.9,0.8103]
[1735153945423,2.88227,3469.5,3468.9,0.8103]
[1735153946003,2.88236,3469.4,3468.9,0.8103]
[1735153950689,2.78236,3469.4,3468.9,0.8103]
[1735153951445,2.88252,3469.2,3468.9,0.8103]
[1735153951581,2.88252,3469.2,3468.7,0.8332]
[1735153952333,2.8826,3469.1,3468.7,0.8332]
[1735153952883,2.8826,3469.1,3468.6,1.20903394]
[1735153953128,2.8826,3469.1,3468.4,1.98923394]
[1735153953950,2.88264,3469.1,3468.4,1.98923394]
[1735153954521,2.88264,3469.1,3468.5,0.99985991]
[1735153955626,2.88264,3469.1,3468.4,0.7802]
[1735153957541,0.7876,3469.3,3468.4,0.7802]
[1735153957755,2.72528185,3468.7,3468.2,1.20903394]
[1735153957908,2.88325,3468.3,3468.2,1.20903394]
[1735153959130,2.88309,3468.5,3468.2,1.20903394]
[1735153960009,2.88309,3468.5,3467.9,0.7802]
[1735153965257,2.88309,3468.5,3467.9,3.62648631]
[1735153965455,2.88309,3468.5,3467.9,0.7802]
[1735153965750,0.7949,3468.9,3467.9,0.7802]
[1735153966057,2.88299,3468.7,3467.9,0.7802]
[1735153966230,2.88304,3468.6,3467.9,0.7802]
[1735153968145,0.7949,3468.9,3467.9,0.7802]
[1735153968341,2.88309,3468.5,3467.9,0.7802]
[1735153970059,0.8284,3468.4,3467.9,0.7802]
[1735153970636,2.88309,3468.5,3467.9,0.7802]
[1735153974135,0.8284,3468.6,3467.9,0.7802]
[1735153974336,2.88317,3468.4,3467.9,0.7802]
[1735153974799,3.58175955,3468.9,3467.9,0.7802]
[1735153975097,2.88303,3468.6,3467.9,0.7802]
[1735153975233,2.88303,3468.6,3467.9,35.7802]
[1735153975475,2.88303,3468.6,3467.9,0.7802]
[1735153977809,0.7849,3468.6,3467.9,0.7802]
[1735153978007,2.88311,3468.5,3467.9,0.7802]
[1735153980990,2.88317,3468.4,3467.9,0.7802]
[1735153985937,3.249977,3468.4,3467.4,0.769]
[1735153986143,2.88325,3468.3,3467.4,0.769]
[1735153987427,2.88311,3468.5,3467.4,0.769]
[1735153989072,2.88311,3468.5,3467.5,0.769]
[1735153989410,2.78311,3468.5,3467.5,0.769]
[1735153989861,1.19729534,3468.9,3467.5,0.55]
[1735153990065,2.88293,3468.7,3467.7,0.769]
[1735153990230,1.19729534,3468.9,3467.9,0.769]
[1735153990452,2.88301,3468.6,3467.9,0.769]
[1735153991161,1.19729534,3468.8,3467.8,2.84628631]
[1735153991363,1.19729534,3468.8,3467.9,0.7647]
[1735153992071,2.88277,3468.9,3467.9,0.7647]
[1735153992269,1.19729534,3469.0,3468.0,0.5788317]
[1735153992469,1.19729534,3469.0,3468.2,0.55]
[1735153992674,1.19729534,3469.0,3468.5,0.7647]
[1735153992872,1.19729534,3469.0,3468.7,0.7647]
[1735153993076,1.19729534,3469.0,3468.7,3.0]
[1735153993271,2.99323835,3469.5,3468.8,0.7647]
[1735153993272,1.19729534,3469.2,3468.8,0.7647]
[1735153993471,1.19729534,3469.2,3469.0,0.7647]
[1735153995205,1.19729534,3470.0,3469.0,0.7647]
[1735153995535,1.19729534,3470.0,3469.2,0.7647]
[1735153995735,1.19729534,3470.0,3469.4,0.7647]
[1735153996311,2.39459068,3470.4,3469.8,0.55]
[1735153996312,1.19729534,3470.1,3469.8,0.55]
[1735153996474,1.19729534,3470.1,3469.9,0.7647]
[1735153996876,1.19729534,3470.1,3470.0,1.3147]
[1735153997986,1.19729534,3471.1,3470.2,0.55]
[1735153998312,1.19729534,3471.1,3470.3,0.95117]
[1735153999395,0.7641,3471.3,3470.3,0.95117]
[1735154001212,2.88094,3471.1,3470.3,0.95117]
[1735154005444,2.78094,3471.1,3470.3,0.95117]
[1735154006120,0.7641,3471.4,3470.3,0.95117]
[1735154006324,2.88118,3470.8,3470.3,0.7647]
[1735154007227,2.88128,3470.7,3469.6,3.0]
[1735154007523,0.8234,3470.8,3469.7,0.759]
[1735154007727,2.88142,3470.5,3469.8,0.66052863]
[1735154007889,2.88142,3470.5,3469.7,0.759]
[1735154009030,2.88142,3470.5,3469.8,0.55]
[1735154011038,0.8234,3470.8,3469.8,0.55]
[1735154011341,2.88143,3470.5,3469.8,0.55]
[1735154011814,2.88143,3470.5,3469.8,0.5728]
[1735154013914,2.88143,3470.5,3469.9,0.759]
[1735154018946,2.88143,3470.5,3469.9,3.60528631]
[1735154019938,2.88143,3470.5,3469.9,0.759]
[1735154020435,2.88129,3470.7,3469.9,0.759]
[1735154020656,2.78129,3470.7,3469.9,0.759]
[1735154025735,2.88134,3470.6,3469.9,0.759]
[1735154029369,2.88144,3470.5,3469.9,0.759]
[1735154040564,1.19729534,3470.6,3470.0,1.3382]
[1735154040795,1.19729534,3470.6,3470.2,0.55]
[1735154042890,1.19729534,3470.7,3470.2,0.55]
[1735154044205,1.19729534,3470.7,3470.3,0.7926]
[1735154044994,1.19729534,3470.8,3470.3,1.79333411]
[1735154046118,1.19729534,3470.8,3470.3,0.7926]
[1735154053336,1.19729534,3470.8,3470.4,0.8069]
[1735154053507,1.19729534,3470.8,3470.7,0.55]
[1735154053712,1.19729534,3470.8,3470.7,1.3569]
[1735154054933,1.19729534,3471.4,3470.7,5.06748619]
[1735154055505,4.07798534,3471.4,3470.7,5.06748619]
[1735154055804,4.07798534,3471.4,3470.7,6.19587538]
[1735154056245,4.07798534,3471.4,3470.7,2.48528919]
[1735154056440,4.07798534,3471.4,3470.7,1.3569]
[1735154057646,2.88069,3471.4,3470.7,1.3569]
[1735154058824,4.07798534,3471.4,3470.7,1.3569]
[1735154059151,1.94849534,3471.4,3470.7,0.8069]
[1735154059311,2.88109,3470.9,3470.7,0.8069]
[1735154059646,2.88076,3471.3,3470.5,0.8069]
[1735154059943,2.88115,3470.9,3470.5,0.8069]
[1735154060431,3.63235,3470.9,3470.5,0.8069]
[1735154061609,2.88115,3470.9,3470.5,0.8069]
[1735154063176,2.86969605,3470.9,3470.5,0.8069]
[1735154064015,1.19699922,3470.8,3470.5,0.8069]
[1735154064244,2.86969605,3470.9,3470.5,0.8069]
[1735154066964,4.07793922,3471.1,3470.5,0.8069]
[1735154071820,5.15450898,3471.1,3470.5,0.8069]
[1735154077583,2.88103,3471.0,3470.5,0.8069]
[1735154081497,1.19699922,3471.1,3470.5,0.8069]
[1735154082294,4.07794922,3471.1,3470.5,0.8069]
[1735154086500,5.27524456,3471.1,3470.5,0.8069]
[1735154088594,6.30320239,3471.1,3470.5,0.8069]
[1735154090502,1.19729534,3471.0,3470.5,0.8069]
[1735154092306,1.19729534,3471.0,3470.9,1.308]
[1735154092804,1.19729534,3471.0,3470.9,36.308]
[1735154093005,1.19729534,3471.0,3470.9,42.15428631]
[1735154093164,1.19729534,3471.0,3470.9,7.15428631]
[1735154093364,1.19729534,3471.5,3470.9,6.05102076]
[1735154093587,1.19729534,3471.5,3471.1,0.758]
[1735154093977,1.19729534,3471.5,3471.2,0.55]
[1735154094210,1.19729534,3471.5,3471.3,0.758]
[1735154094908,4.07718922,3472.0,3471.3,0.758]
[1735154095465,1.19699922,3472.0,3471.4,0.55]
[1735154095768,1.19729534,3472.1,3471.5,0.758]
[1735154096700,1.19729534,3472.1,3471.6,0.55]
[1735154096885,1.19729534,3472.1,3471.9,0.825]
[1735154097579,1.19729534,3472.4,3471.9,0.825]
[1735154097774,2.39429456,3472.4,3471.9,0.825]
[1735154097981,1.19729534,3472.4,3471.9,0.825]
[1735154098302,1.19729534,3472.4,3472.0,0.55]
[1735154099387,2.99294223,3472.6,3472.0,0.55]
[1735154099388,1.19699922,3472.6,3472.0,0.55]
[1735154100402,4.07669922,3472.6,3472.0,0.55]
[1735154101106,1.19729534,3472.8,3472.2,0.55]
[1735154101307,1.19729534,3472.8,3472.4,1.375]
[1735154102912,4.07626922,3473.1,3472.4,1.375]
[1735154104898,2.87918,3473.3,3472.5,0.825]
[1735154105103,2.8792,3473.2,3472.5,0.825]
[1735154105303,2.8792,3473.2,3472.5,1.10144992]
[1735154105848,2.87927,3473.1,3472.5,0.825]
[1735154106124,2.87931,3473.1,3472.5,0.825]
[1735154108191,1.19699922,3473.2,3472.5,0.825]
[1735154108432,2.87938,3473.0,3472.5,0.825]
[1735154110721,2.82938,3473.0,3472.5,0.825]
[1735154110930,2.82938,3473.0,3472.5,0.98175]
[1735154111737,2.8792,3473.2,3472.5,0.98175]
[1735154112064,2.87901,3473.5,3472.5,0.98175]
[1735154112065,2.87928,3473.1,3472.5,0.98175]
[1735154113563,1.19729534,3474.0,3472.5,0.98175]
[1735154113694,1.19729534,3474.0,3473.1,1.19699922]
[1735154113889,1.19729534,3474.0,3473.3,1.3089]
[1735154114108,4.07573534,3474.1,3473.4,0.02878725]
[1735154114330,4.07573534,3474.1,3473.3,1.3089]
[1735154114839,4.07573534,3474.1,3473.5,0.55]
[1735154115244,1.19729534,3474.1,3473.6,0.78768702]
[1735154115406,1.19729534,3474.1,3473.8,0.7589]
[1735154115754,1.19729534,3475.1,3474.1,0.7589]
[1735154115903,1.19729534,3475.1,3474.4,0.7589]
[1735154116098,1.19729534,3475.1,3474.6,0.7589]
[1735154116839,1.19729534,3475.1,3474.7,0.55]
[1735154117009,1.19729534,3475.1,3474.9,0.55]
[1735154117216,1.19729534,3475.1,3474.9,0.73589]
[1735154117415,1.19729534,3475.1,3475.0,1.3089]
[1735154117631,4.07577256,3476.2,3475.2,0.7589]
[1735154117953,1.19899256,3476.2,3475.5,0.55]
[1735154119261,1.19899256,3476.2,3475.6,0.55]
[1735154119627,0.7706,3477.2,3475.6,0.55]
[1735154119849,2.87632,3476.7,3475.6,0.55]
[1735154120210,0.63628489,3477.0,3475.6,0.55]
[1735154120211,2.87638,3476.6,3475.6,0.55]
[1735154121112,2.87619,3476.9,3475.8,0.55]
[1735154121635,0.63628489,3477.0,3476.0,0.55]
[1735154121827,2.71624888,3477.4,3476.0,0.55]
[1735154122635,2.8757,3477.5,3476.4,0.55]
[1735154122827,2.8757,3477.5,3476.5,0.7589]
[1735154123027,2.87571,3477.4,3476.6,0.55]
[1735154124211,2.87545,3477.8,3476.7,0.7589]
[1735154124443,2.87555,3477.6,3476.8,0.55]
[1735154126064,2.87526,3478.0,3477.1,0.7589]
[1735154126279,2.8748,3478.5,3477.2,0.55]
[1735154126280,2.71624888,3478.5,3477.2,0.55]
[1735154126483,2.8753,3477.9,3477.2,0.55]
[1735154126785,2.8753,3477.9,3477.1,0.7589]
[1735154127331,2.87555,3477.6,3477.1,0.7589]
[1735154127529,2.87582,3477.3,3476.2,1.3114]
[1735154127970,0.7896,3477.8,3476.2,1.3114]
[1735154128171,2.87586,3477.3,3476.2,1.3114]
[1735154128369,2.87591,3477.2,3476.2,1.3114]
[1735154128830,2.87596,3477.1,3476.2,0.7614]
[1735154129231,2.87567,3477.5,3476.3,3.47764888]
[1735154129450,2.87567,3477.5,3476.4,0.7614]
[1735154129685,0.32262549,3477.4,3476.4,0.7614]
[1735154130694,2.71624888,3478.2,3476.4,0.7614]
[1735154130695,0.42352575,3478.4,3477.0,0.7614]
[1735154130988,2.87487,3478.5,3477.2,0.7614]
[1735154131126,2.87505,3478.2,3477.2,0.7614]
[1735154131776,0.172192,3478.6,3477.5,6.14185888]
[1735154132070,0.172192,3478.6,3477.7,0.55]
[1735154132301,0.172192,3478.6,3477.9,0.55]
[1735154132449,0.172192,3478.6,3478.0,0.7614]
[1735154132651,0.172192,3478.6,3478.1,0.55]
[1735154133291,0.172192,3478.6,3478.0,0.7614]
[1735154136068,3.046912,3478.6,3478.0,0.7614]
[1735154136848,2.87489,3478.4,3478.0,0.7614]
[1735154138369,3.046922,3478.6,3478.0,0.7614]
[1735154139462,0.172192,3478.6,3478.0,0.7614]
[1735154142496,0.172192,3478.6,3478.2,0.8194]
[1735154142798,0.36741663,3479.2,3478.8,0.8194]
[1735154144561,2.71624888,3480.1,3478.8,0.8194]
[1735154144754,2.87417,3479.3,3478.8,0.8194]
[1735154145057,3.47794888,3479.8,3478.3,0.43694]
[1735154145262,3.47794888,3479.8,3477.6,2.71624888]
[1735154145263,2.87451,3478.9,3478.4,0.8194]
[1735154145466,2.87459,3478.8,3478.4,0.8194]
[1735154145749,2.37977054,3478.8,3478.4,0.8194]
[1735154145964,2.87463,3478.7,3478.4,0.8194]
[1735154146492,0.7617,3479.0,3477.6,0.8194]
[1735154146691,2.87479,3478.6,3477.7,2.84628631]
[1735154146893,2.8748,3478.5,3477.6,0.8194]
[1735154147264,2.87488,3478.4,3477.6,0.8194]
[1735154148290,0.34779489,3478.9,3477.6,0.8194]
[1735154148516,2.87482,3478.5,3477.6,0.8194]
[1735154148888,0.7617,3479.0,3477.6,0.8194]
[1735154149089,2.87455,3478.8,3477.8,0.8194]
[1735154149505,2.87455,3478.8,3477.9,0.38194]
[1735154150514,2.87455,3478.8,3478.0,0.84814711]
[1735154150691,2.87464,3478.7,3478.0,0.8194]
[1735154152418,2.87426,3479.2,3478.0,0.8194]
[1735154152724,2.87448,3478.9,3478.0,0.8194]
[1735154152921,2.87426,3479.2,3478.1,2.84628631]
[1735154153122,2.87456,3478.8,3478.1,2.84628631]
[1735154154496,0.7617,3479.3,3478.1,2.84628631]
[1735154154497,2.87467,3478.7,3478.1,2.84628631]
[1735154155395,0.7617,3479.3,3478.1,2.84628631]
[1735154155628,0.7617,3479.3,3478.2,0.8194]
[1735154155827,0.7617,3479.5,3478.3,0.36656863]
[1735154156035,2.87416,3479.3,3478.4,0.8194]
[1735154156204,1.3867,3479.8,3478.6,0.8194]
[1735154156535,2.87415,3479.3,3478.6,0.8194]
[1735154157035,2.87415,3479.3,3478.6,0.99299686]
[1735154158731,2.71624888,3479.7,3478.6,0.8194]
[1735154159030,2.8743,3479.2,3478.6,0.8194]
[1735154159228,2.87389,3479.6,3478.6,0.8194]
[1735154159229,2.87432,3479.1,3478.6,0.8194]
[1735154160396,0.625,3479.8,3478.8,0.8189]
[1735154161035,2.8742,3479.3,3478.8,0.8189]
[1735154161397,2.87423,3479.2,3478.8,0.8189]
[1735154161592,0.625,3479.8,3478.8,0.8189]
[1735154161593,2.87438,3479.1,3478.8,0.8189]
[1735154163098,2.87416,3479.3,3478.8,0.8189]
[1735154163505,2.87427,3479.2,3478.8,0.8189]
[1735154164509,2.87381,3479.7,3478.8,0.8189]
[1735154164776,0.349881,3479.6,3478.8,0.8189]
[1735154165246,2.87413,3479.4,3478.8,0.8189]
[1735154166446,2.87391,3479.6,3478.8,0.8189]
[1735154166750,0.625,3479.8,3478.9,0.55]
[1735154167051,0.625,3479.8,3479.2,0.7998]
[1735154167236,0.625,3479.8,3479.1,3.55]
[1735154167237,0.625,3479.8,3479.4,0.7998]
[1735154168439,0.625,3479.8,3478.5,0.7998]
[1735154168645,2.87442,3479.0,3478.5,0.7998]
[1735154169457,2.87442,3479.0,3478.6,1.20903394]
[1735154170123,2.71624888,3479.6,3478.6,1.20903394]
[1735154170353,0.69918589,3479.6,3478.6,1.20903394]
[1735154170552,2.87432,3479.1,3478.5,0.7998]
[1735154170709,2.87397,3479.5,3478.5,0.7998]
[1735154170912,2.87433,3479.1,3478.5,0.7998]
[1735154171553,2.87441,3479.0,3478.5,0.7998]
[1735154171914,2.87425,3479.2,3478.5,0.7998]
[1735154172114,2.87414,3479.3,3478.5,0.7998]
[1735154172356,2.87405,3479.4,3478.5,0.7998]
[1735154172651,0.69918589,3479.6,3478.5,0.7998]
[1735154172652,2.87421,3479.3,3478.5,0.7998]
[1735154172855,2.87421,3479.3,3478.5,1.18265457]
[1735154173056,2.87428,3479.2,3478.5,1.18265457]
[1735154174116,3.57311589,3479.6,3478.5,1.18265457]
[1735154174450,2.87431,3479.1,3478.5,1.18265457]
[1735154174677,3.57311589,3479.6,3478.5,1.18265457]
[1735154174678,2.87446,3479.0,3478.5,0.7998]
[1735154174852,2.87482,3478.5,3478.0,0.7876]
[1735154175228,2.87489,3478.4,3478.0,0.7876]
[1735154175430,2.87453,3478.9,3478.0,0.7876]
[1735154175643,2.87471,3478.7,3478.0,0.7876]
[1735154175864,2.87465,3478.7,3478.0,0.7876]
[1735154177632,4.88908412,3479.2,3478.0,0.7876]
[1735154178040,1.18628412,3479.0,3478.0,0.7876]
[1735154178240,2.87462,3478.8,3478.0,0.7876]
[1735154178465,2.87466,3478.7,3478.0,0.7876]
[1735154178676,1.18628412,3479.0,3478.0,0.7876]
[1735154178990,2.87485,3478.5,3478.0,0.7876]
[1735154179576,2.87489,3478.4,3478.0,0.7876]
[1735154179767,2.87447,3478.9,3478.0,0.7876]
[1735154180001,3.902533,3479.0,3478.0,0.7876]
[1735154180002,2.87492,3478.4,3478.0,0.7876]
[1735154180998,1.18628412,3478.8,3478.0,0.7876]
[1735154181870,1.18628412,3478.8,3478.2,0.7876]
[1735154182089,1.18628412,3478.8,3478.4,0.7876]
[1735154182670,1.18628412,3478.8,3478.5,35.55]
[1735154183002,1.18628412,3479.1,3478.6,0.7876]
[1735154183203,1.18628412,3479.1,3478.7,2.84628631]
[1735154183522,1.18628412,3479.1,3478.6,0.7876]
[1735154184359,2.87408,3479.4,3478.6,0.7876]
[1735154185297,1.18628412,3479.5,3478.6,0.7876]
[1735154186013,4.06025412,3479.5,3478.6,0.7876]
[1735154186706,2.87397,3479.5,3478.6,0.7876]
[1735154187704,2.87407,3479.4,3478.7,0.366248]
[1735154187905,1.18628412,3479.6,3478.8,0.7801]
[1735154188106,4.06018412,3479.6,3478.8,0.7801]
[1735154188312,4.06018412,3479.6,3478.9,0.02874138]